fUSD/lending_fUSD_20250202
["ID","MTS","AMOUNT","RATE_DAILY","PERIOD"]
[351331179,1738516263182,-500.0,0.00011231,2]
[351331180,1738516263203,-472.98437584,0.00011231,2]
[351331181,1738516263223,-500.0,0.00011231,2]
[351331182,1738516263245,-500.0,0.00011231,2]
[351331183,1738516263265,-500.0,0.00011231,2]
[351331184,1738516263286,-500.0,0.00011231,2]
[351331185,1738516263306,-500.0,0.00011231,2]
[351331186,1738516263321,-500.0,0.00011231,2]
[351331187,1738516263341,-553.02,0.00011231,2]
[351331188,1738516263354,-500.0,0.00011231,2]
[351331189,1738516263374,-542.96,0.00011231,2]
[351331190,1738516263387,-500.0,0.00011231,2]
[351331191,1738516263405,-859.6,0.00011231,2]
[351331192,1738516263421,-500.0,0.00011231,2]
[351331193,1738516263437,-500.0,0.00011231,2]
[351331194,1738516263452,-500.0,0.00011231,2]
[351331195,1738516263469,-500.0,0.00011231,2]
[351331196,1738516263486,-500.0,0.00011231,2]
[351331197,1738516263502,-738.49,0.00011231,2]
[351331198,1738516263518,-500.0,0.00011231,2]
[351331199,1738516263535,-500.0,0.00011231,2]
[351331200,1738516263552,-500.0,0.00011231,2]
[351331201,1738516263569,-300.0,0.00011231,2]
[351331202,1738516263586,-659.82,0.00011232,2]
[351331203,1738516263602,-1818.08,0.00011232,2]
[351331204,1738516263618,-1383.94,0.00011232,2]
[351331205,1738516263636,-1632.92,0.00011232,2]
[351331206,1738516263661,-500.0,0.00011232,2]
[351331207,1738516263679,-500.0,0.00011232,2]
[351331208,1738516263695,-500.0,0.00011232,2]
[351331209,1738516263712,-500.0,0.00011232,2]
[351331210,1738516263733,-500.0,0.00011232,2]
[351331211,1738516263749,-500.0,0.00011232,2]
[351331212,1738516263765,-500.0,0.00011232,2]
[351331213,1738516263782,-1496.05,0.00011232,2]
[351331214,1738516263803,-500.0,0.00011232,2]
[351331215,1738516263820,-500.0,0.00011232,2]
[351331216,1738516263836,-500.0,0.00011232,2]
[351331217,1738516263851,-500.0,0.00011232,2]
[351331218,1738516263867,-500.0,0.00011232,2]
[351331219,1738516263883,-919.37,0.00011232,2]
[351331220,1738516263900,-500.0,0.00011232,2]
[351331221,1738516263917,-500.0,0.00011232,2]
[351331222,1738516263934,-500.0,0.00011232,2]
[351331223,1738516263952,-500.0,0.00011232,2]
[351331224,1738516263973,-500.0,0.00011232,2]
[351331225,1738516263994,-500.0,0.00011232,2]
[351331226,1738516264015,-500.0,0.00011232,2]
[351331227,1738516264032,-503.87637761,0.00011232,2]
[351331228,1738516264049,-1229.6,0.00011232,2]
[351331229,1738516264063,-500.0,0.00011232,2]
[351331230,1738516264078,-1004.74,0.00011232,2]
[351331231,1738516264097,-500.0,0.00011232,2]
[351331232,1738516264114,-500.0,0.00011232,2]
[351331233,1738516264131,-500.0,0.00011232,2]
[351331234,1738516264148,-500.0,0.00011232,2]
[351331235,1738516264165,-500.0,0.00011232,2]
[351331236,1738516264181,-500.0,0.00011232,2]
[351331237,1738516264199,-586.31867522,0.00011232,2]
[351331238,1738516264215,-508.68,0.00011232,2]
[351331239,1738516264236,-500.0,0.00011232,2]
[351331240,1738516264254,-500.0,0.00011232,2]
[351331241,1738516264272,-500.0,0.00011232,2]
[351331242,1738516264288,-500.0,0.00011232,2]
[351331243,1738516264305,-1560.97,0.00011232,2]
[351331244,1738516264324,-500.0,0.00011232,2]
[351331245,1738516264340,-500.0,0.00011232,2]
[351331246,1738516264357,-500.0,0.00011232,2]
[351331247,1738516264373,-500.0,0.00011232,2]
[351331248,1738516264389,-500.0,0.00011232,2]
[351331249,1738516264405,-500.0,0.00011232,2]
[351331250,1738516264419,-935.8,0.00011232,2]
[351331251,1738516264436,-500.0,0.00011232,2]
[351331252,1738516264451,-500.0,0.00011232,2]
[351331253,1738516264472,-500.0,0.00011232,2]
[351331254,1738516264488,-500.0,0.00011232,2]
[351331255,1738516264504,-536.8298614,0.00011232,2]
[351331256,1738516264518,-1597.78,0.00011232,2]
[351331257,1738516264533,-500.0,0.00011232,2]
[351331258,1738516264549,-500.0,0.00011232,2]
[351331259,1738516264563,-500.0,0.00011232,2]
[351331260,1738516264580,-500.0,0.00011232,2]
[351331261,1738516264595,-686.32,0.00011232,2]
[351331262,1738516264788,-500.0,0.00011232,2]
[351331263,1738516264810,-500.0,0.00011232,2]
[351331264,1738516264821,-500.0,0.00011232,2]
[351331265,1738516264832,-500.0,0.00011232,2]
[351331266,1738516264842,-500.0,0.00011232,2]
[351331267,1738516264853,-500.0,0.00011232,2]
[351331268,1738516264863,-747.2,0.00011232,2]
[351331269,1738516264873,-233.106434,0.00011232,2]
[351331270,1738516264884,-500.0,0.00011232,2]
[351331271,1738516264894,-500.0,0.00011232,2]
[351331272,1738516264904,-931.63,0.00011232,2]
[351331273,1738516264915,-500.0,0.00011232,2]
[351331274,1738516264926,-544.19,0.00011232,2]
[351331275,1738516264936,-500.0,0.00011232,2]
[351331276,1738516264948,-500.0,0.00011232,2]
[351331277,1738516264959,-500.0,0.00011232,2]
[351331278,1738516264974,-793.15,0.00011232,2]
[351331279,1738516264984,-500.0,0.00011232,2]
[351331280,1738516264995,-500.0,0.00011232,2]
[351331281,1738516265004,-500.0,0.00011232,2]
[351331282,1738516265014,-834.52,0.00011232,2]
[351331283,1738516265024,-500.0,0.00011232,2]
[351331284,1738516265034,-500.0,0.00011232,2]
[351331285,1738516265043,-500.0,0.00011232,2]
[351331286,1738516265055,-500.0,0.00011232,2]
[351331287,1738516265065,-1545.01,0.00011232,2]
[351331288,1738516265075,-500.0,0.00011232,2]
[351331289,1738516265086,-500.0,0.00011232,2]
[351331290,1738516265095,-327.40140259,0.00011232,2]
[351331291,1738516265106,-500.0,0.00011232,2]
[351331292,1738516265116,-500.0,0.00011232,2]
[351331293,1738516265126,-500.0,0.00011232,2]
[351331294,1738516265136,-1108.92,0.00011232,2]
[351331295,1738516265145,-500.0,0.00011232,2]
[351331296,1738516265155,-500.0,0.00011232,2]
[351331297,1738516265165,-500.0,0.00011232,2]
[351331298,1738516265176,-500.0,0.00011232,2]
[351331299,1738516265186,-500.0,0.00011232,2]
[351331300,1738516265195,-500.0,0.00011232,2]
[351331301,1738516265204,-500.0,0.00011232,2]
[351331302,1738516265213,-722.24,0.00011232,2]
[351331303,1738516265226,-571.77,0.00011232,2]
[351331304,1738516265235,-500.0,0.00011232,2]
[351331305,1738516265244,-500.0,0.00011232,2]
[351331306,1738516265253,-1136.17,0.00011232,2]
[351331307,1738516265263,-500.0,0.00011232,2]
[351331308,1738516265273,-502.55602871,0.00011232,2]
[351331309,1738516265282,-500.0,0.00011232,2]
[351331310,1738516265291,-500.0,0.00011232,2]
[351331311,1738516265300,-500.0,0.00011232,2]
[351331312,1738516265310,-513.27718838,0.00011232,2]
[351331313,1738516265318,-500.0,0.00011232,2]
[351331314,1738516265327,-710.69,0.00011232,2]
[351331315,1738516265336,-857.14,0.00011232,2]
[351331316,1738516265345,-502.33484272,0.00011232,2]
[351331317,1738516265355,-500.0,0.00011232,2]
[351331318,1738516265365,-222.84240655,0.00011232,2]
[351331319,1738516265374,-500.0,0.00011232,2]
[351331320,1738516265382,-517.09416667,0.00011232,2]
[351331321,1738516265391,-1750.64,0.00011232,2]
[351331322,1738516265401,-512.00221171,0.00011232,2]
[351331323,1738516265410,-500.0,0.00011232,2]
[351331324,1738516265419,-500.0,0.00011232,2]
[351331325,1738516265428,-500.0,0.00011232,2]
[351331326,1738516265438,-500.0,0.00011232,2]
[351331327,1738516265447,-500.0,0.00011232,2]
[351331328,1738516265455,-500.0,0.00011232,2]
[351331329,1738516265464,-500.0,0.00011232,2]
[351331330,1738516265476,-514.1707153,0.00011232,2]
[351331331,1738516265485,-500.0,0.00011232,2]
[351331332,1738516265494,-500.0,0.00011232,2]
[351331333,1738516265504,-500.0,0.00011232,2]
[351331334,1738516265513,-500.0,0.00011232,2]
[351331335,1738516265527,-842.59,0.00011232,2]
[351331336,1738516265537,-510.05127468,0.00011232,2]
[351331337,1738516265546,-500.0,0.00011232,2]
[351331338,1738516265557,-500.0,0.00011232,2]
[351331339,1738516265565,-505.76293258,0.00011232,2]
[351331340,1738516265573,-500.0,0.00011232,2]
[351331341,1738516265581,-625.53,0.00011232,2]
[351331342,1738516265590,-775.0,0.00011232,2]
[351331343,1738516265597,-500.0,0.00011232,2]
[351331344,1738516265606,-500.0,0.00011232,2]
[351331345,1738516265613,-513.32537294,0.00011232,2]
[351331346,1738516265622,-500.0,0.00011232,2]
[351331347,1738516265630,-500.0,0.00011232,2]
[351331348,1738516265639,-739.9,0.00011232,2]
[351331349,1738516265647,-500.0,0.00011232,2]
[351331350,1738516265655,-500.0,0.00011232,2]
[351331351,1738516265664,-500.0,0.00011232,2]
[351331352,1738516265672,-500.0,0.00011232,2]
[351331353,1738516265682,-500.0,0.00011232,2]
[351331354,1738516265692,-500.0,0.00011232,2]
[351331355,1738516265702,-500.0,0.00011232,2]
[351331356,1738516265712,-1495.04,0.00011232,2]
[351331357,1738516265725,-500.0,0.00011232,2]
[351331358,1738516265734,-500.0,0.00011232,2]
[351331359,1738516265744,-500.0,0.00011232,2]
[351331360,1738516265754,-500.0,0.00011232,2]
[351331361,1738516265763,-844.5,0.00011232,2]
[351331362,1738516265773,-500.0,0.00011232,2]
[351331363,1738516265782,-500.0,0.00011232,2]
[351331364,1738516265792,-500.0,0.00011232,2]
[351331365,1738516265802,-500.0,0.00011232,2]
[351331366,1738516265812,-500.0,0.00011232,2]
[351331367,1738516265822,-500.0,0.00011232,2]
[351331368,1738516265832,-500.0,0.00011232,2]
[351331369,1738516265841,-500.0,0.00011232,2]
[351331370,1738516265851,-430.2436793,0.00011232,2]
[351331371,1738516265861,-500.0,0.00011232,2]
[351331372,1738516265870,-500.0,0.00011232,2]
[351331373,1738516265880,-500.0,0.00011232,2]
[351331374,1738516265889,-500.0,0.00011232,2]
[351331375,1738516265899,-684.18,0.00011232,2]
[351331376,1738516265909,-247.26287404,0.00011232,2]
[351331377,1738516265919,-501.9437636,0.00011232,2]
[351331378,1738516265929,-500.0,0.00011232,2]
[351331379,1738516265939,-500.0,0.00011232,2]
[351331380,1738516265948,-500.0,0.00011232,2]
[351331381,1738516265958,-500.0,0.00011232,2]
[351331382,1738516265969,-631.66,0.00011232,2]
[351331383,1738516265979,-500.0,0.00011232,2]
[351331384,1738516265988,-500.0,0.00011232,2]
[351331385,1738516266003,-500.0,0.00011232,2]
[351331386,1738516266013,-500.0,0.00011232,2]
[351331387,1738516266023,-512.31402407,0.00011232,2]
[351331388,1738516266035,-537.8939767,0.00011232,2]
[351331389,1738516266044,-500.0,0.00011232,2]
[351331390,1738516266053,-500.0,0.00011232,2]
[351331391,1738516266063,-551.59,0.00011232,2]
[351331392,1738516266073,-512.51009289,0.00011232,2]
[351331393,1738516266083,-503.91940821,0.00011232,2]
[351331394,1738516266092,-500.0,0.00011232,2]
[351331395,1738516266102,-569.65249614,0.00011232,2]
[351331396,1738516266112,-500.0,0.00011232,2]
[351331397,1738516266122,-500.0,0.00011232,2]
[351331398,1738516266132,-1084.43,0.00011232,2]
[351331399,1738516266142,-500.0,0.00011232,2]
[351331400,1738516266151,-500.0,0.00011232,2]
[351331401,1738516266160,-500.0,0.00011232,2]
[351331402,1738516266170,-500.0,0.00011232,2]
[351331403,1738516266179,-500.0,0.00011232,2]
[351331404,1738516266189,-499.70858025,0.00011232,2]
[351331405,1738516266199,-500.0,0.00011232,2]
[351331406,1738516266208,-500.0,0.00011232,2]
[351331407,1738516266224,-840.48,0.00011232,2]
[351331408,1738516266235,-500.0,0.00011232,2]
[351331409,1738516266244,-500.0,0.00011232,2]
[351331410,1738516266254,-502.26809982,0.00011232,2]
[351331411,1738516266263,-1710.72,0.00011232,2]
[351331412,1738516266273,-500.0,0.00011232,2]
[351331413,1738516266283,-500.0,0.00011232,2]
[351331414,1738516266292,-270.84644411,0.00011232,2]
[351331415,1738516266302,-500.0,0.00011232,2]
[351331416,1738516266312,-500.0,0.00011232,2]
[351331417,1738516266322,-500.0,0.00011232,2]
[351331418,1738516266332,-517.38,0.00011232,2]
[351331419,1738516266342,-760.74,0.00011232,2]
[351331420,1738516266352,-500.0,0.00011232,2]
[351331421,1738516266362,-849.46,0.00011232,2]
[351331422,1738516266371,-500.0,0.00011232,2]
[351331423,1738516266382,-500.0,0.00011232,2]
[351331424,1738516266392,-499.49450121,0.00011232,2]
[351331425,1738516266402,-500.0,0.00011232,2]
[351331426,1738516266412,-2007.31,0.00011232,2]
[351331427,1738516266422,-500.0,0.00011232,2]
[351331428,1738516266433,-500.0,0.00011232,2]
[351331429,1738516266444,-500.0,0.00011232,2]
[351331430,1738516266454,-500.0,0.00011232,2]
[351331431,1738516266464,-500.0,0.00011232,2]
[351331432,1738516266477,-500.0,0.00011232,2]
[351331433,1738516266487,-500.0,0.00011232,2]
[351331434,1738516266497,-892.19,0.00011232,2]
[351331435,1738516266507,-658.76,0.00011232,2]
[351331436,1738516266517,-500.0,0.00011232,2]
[351331437,1738516266527,-500.0,0.00011232,2]
[351331438,1738516266536,-500.0,0.00011232,2]
[351331439,1738516266546,-500.0,0.00011232,2]
[351331440,1738516266556,-500.0,0.00011232,2]
[351331441,1738516266565,-1757.52,0.00011232,2]
[351331442,1738516266575,-500.0,0.00011232,2]
[351331443,1738516266584,-1228.76,0.00011232,2]
[351331444,1738516266594,-500.0,0.00011232,2]
[351331445,1738516266603,-1094.69,0.00011232,2]
[351331446,1738516266612,-500.0,0.00011232,2]
[351331447,1738516266622,-497.40891138,0.00011232,2]
[351331448,1738516266633,-500.0,0.00011232,2]
[351331449,1738516266642,-518.37,0.00011232,2]
[351331450,1738516266652,-520.54802072,0.00011232,2]
[351331451,1738516266661,-508.29805593,0.00011232,2]
[351331452,1738516266671,-500.0,0.00011232,2]
[351331453,1738516266680,-500.0,0.00011232,2]
[351331454,1738516266690,-500.0,0.00011232,2]
[351331455,1738516266699,-500.0,0.00011232,2]
[351331456,1738516266709,-500.0,0.00011232,2]
[351331457,1738516266722,-500.0,0.00011232,2]
[351331458,1738516266733,-500.0,0.00011232,2]
[351331459,1738516266743,-3130.51,0.00011232,2]
[351331460,1738516266753,-500.0,0.00011232,2]
[351331461,1738516266763,-1929.48,0.00011232,2]
[351331462,1738516266773,-500.0,0.00011232,2]
[351331463,1738516266789,-500.0,0.00011232,2]
[351331464,1738516266943,-500.0,0.00011232,2]
[351331465,1738516266955,-500.0,0.00011232,2]
[351331466,1738516266964,-500.0,0.00011232,2]
[351331467,1738516266977,-500.0,0.00011232,2]
[351331468,1738516266987,-500.0,0.00011232,2]
[351331469,1738516266998,-1280.69,0.00011232,2]
[351331470,1738516267008,-500.0,0.00011232,2]
[351331471,1738516267021,-500.0,0.00011232,2]
[351331472,1738516267031,-1077.4,0.00011232,2]
[351331473,1738516267041,-500.0,0.00011232,2]
[351331474,1738516267051,-500.0,0.00011232,2]
[351331475,1738516267062,-500.0,0.00011232,2]
[351331476,1738516267071,-500.0,0.00011232,2]
[351331477,1738516267081,-500.0,0.00011232,2]
[351331478,1738516267092,-877.75,0.00011232,2]
[351331479,1738516267102,-2073.0,0.00011232,2]
[351331480,1738516267112,-500.0,0.00011232,2]
[351331481,1738516267121,-500.0,0.00011232,2]
[351331482,1738516267131,-4819.38,0.00011232,2]
[351331483,1738516267140,-500.0,0.00011232,2]
[351331484,1738516267149,-500.0,0.00011232,2]
[351331485,1738516267159,-1736.82,0.00011232,2]
[351331486,1738516267168,-500.0,0.00011232,2]
[351331487,1738516267177,-500.0,0.00011232,2]
[351331488,1738516267187,-700.48,0.00011232,2]
[351331489,1738516267196,-500.0,0.00011232,2]
[351331490,1738516267206,-500.0,0.00011232,2]
[351331491,1738516267216,-500.0,0.00011232,2]
[351331492,1738516267228,-1072.57,0.00011232,2]
[351331493,1738516267239,-3729.39,0.00011232,2]
[351331494,1738516267249,-500.0,0.00011232,2]
[351331495,1738516267259,-500.0,0.00011232,2]
[351331496,1738516267267,-500.0,0.00011232,2]
[351331497,1738516267278,-687.01,0.00011232,2]
[351331498,1738516267287,-1365.66,0.00011232,2]
[351331499,1738516267297,-806.824741,0.00011232,2]
[351331500,1738516267307,-500.0,0.00011232,2]
[351331501,1738516267317,-500.0,0.00011232,2]
[351331502,1738516267327,-500.0,0.00011232,2]
[351331503,1738516267336,-2303.89,0.00011232,2]
[351331504,1738516267346,-1452.31,0.00011232,2]
[351331505,1738516267355,-4008.48,0.00011232,2]
[351331506,1738516267365,-1355.16,0.00011232,2]
[351331507,1738516267375,-500.0,0.00011232,2]
[351331508,1738516267385,-500.0,0.00011232,2]
[351331509,1738516267394,-1416.22,0.00011232,2]
[351331510,1738516267404,-3631.07,0.00011232,2]
[351331511,1738516267415,-500.0,0.00011232,2]
[351331512,1738516267426,-431.478325,0.00011232,2]
[351331513,1738516267436,-547.65,0.00011232,2]
[351331514,1738516267445,-500.0,0.00011232,2]
[351331515,1738516267455,-500.0,0.00011232,2]
[351331516,1738516267465,-2391.97,0.00011232,2]
[351331517,1738516267478,-564.45743676,0.00011232,2]
[351331518,1738516267489,-500.0,0.00011232,2]
[351331519,1738516267501,-878.43,0.00011232,2]
[351331520,1738516267511,-739.38,0.00011232,2]
[351331521,1738516267522,-658.78,0.00011232,2]
[351331522,1738516267536,-500.0,0.00011232,2]
[351331523,1738516267544,-500.0,0.00011232,2]
[351331524,1738516267553,-1291.62,0.00011232,2]
[351331525,1738516267563,-1768.17,0.00011232,2]
[351331526,1738516267573,-500.0,0.00011232,2]
[351331527,1738516267582,-715.219347,0.00011232,2]
[351331528,1738516267592,-500.0,0.00011232,2]
[351331529,1738516267602,-500.0,0.00011232,2]
[351331530,1738516267612,-500.0,0.00011232,2]
[351331531,1738516267622,-3801.08,0.00011232,2]
[351331532,1738516267632,-2540.16,0.00011232,2]
[351331533,1738516267642,-474.746717,0.00011232,2]
[351331534,1738516267653,-500.0,0.00011232,2]
[351331535,1738516267663,-1197.82,0.00011232,2]
[351331536,1738516267673,-710.0,0.00011232,2]
[351331537,1738516267683,-2156.68,0.00011232,2]
[351331538,1738516267693,-500.0,0.00011232,2]
[351331539,1738516267704,-510.72983673,0.00011232,2]
[351331540,1738516267714,-500.0,0.00011232,2]
[351331541,1738516267727,-500.0,0.00011232,2]
[351331542,1738516267736,-500.0,0.00011232,2]
[351331543,1738516267746,-500.0,0.00011232,2]
[351331544,1738516267756,-5321.51,0.00011232,2]
[351331545,1738516267767,-500.0,0.00011232,2]
[351331546,1738516267777,-500.0,0.00011232,2]
[351331547,1738516267787,-583.29,0.00011232,2]
[351331548,1738516267798,-2286.17,0.00011232,2]
[351331549,1738516267808,-500.0,0.00011232,2]
[351331550,1738516267819,-3334.13,0.00011232,2]
[351331551,1738516267829,-709.12,0.00011232,2]
[351331552,1738516267839,-538.86,0.00011232,2]
[351331553,1738516267849,-788.53,0.00011232,2]
[351331554,1738516267858,-514.40784934,0.00011232,2]
[351331555,1738516267868,-3213.09,0.00011232,2]
[351331556,1738516267877,-500.0,0.00011232,2]
[351331557,1738516267887,-500.0,0.00011232,2]
[351331558,1738516267896,-500.0,0.00011232,2]
[351331559,1738516267906,-500.0,0.00011232,2]
[351331560,1738516267916,-500.0,0.00011232,2]
[351331561,1738516267926,-500.0,0.00011232,2]
[351331562,1738516267936,-500.0,0.00011232,2]
[351331563,1738516267945,-472.743312,0.00011232,2]
[351331564,1738516267955,-500.0,0.00011232,2]
[351331565,1738516267965,-500.0,0.00011232,2]
[351331566,1738516267977,-500.0,0.00011232,2]
[351331567,1738516267987,-527.07824148,0.00011232,2]
[351331568,1738516268000,-3347.0,0.00011232,2]
[351331569,1738516268010,-500.0,0.00011232,2]
[351331570,1738516268020,-500.0,0.00011232,2]
[351331571,1738516268030,-500.0,0.00011232,2]
[351331572,1738516268042,-1791.3,0.00011232,2]
[351331573,1738516268051,-1865.45,0.00011232,2]
[351331574,1738516268061,-4126.51,0.00011232,2]
[351331575,1738516268071,-500.0,0.00011232,2]
[351331576,1738516268081,-500.0,0.00011232,2]
[351331577,1738516268090,-599.68879,0.00011232,2]
[351331578,1738516268100,-1290.25,0.00011232,2]
[351331579,1738516268109,-500.0,0.00011232,2]
[351331580,1738516268118,-534.57,0.00011232,2]
[351331581,1738516268128,-491.57518784,0.00011232,2]
[351331582,1738516268137,-2895.12,0.00011232,2]
[351331583,1738516268146,-4106.86,0.00011232,2]
[351331584,1738516268155,-1698.65,0.00011232,2]
[351331585,1738516268164,-500.0,0.00011232,2]
[351331586,1738516268173,-500.0,0.00011232,2]
[351331587,1738516268183,-500.0,0.00011232,2]
[351331588,1738516268193,-500.0,0.00011232,2]
[351331589,1738516268202,-448.017146,0.00011232,2]
[351331590,1738516268214,-855.64,0.00011232,2]
[351331591,1738516268234,-500.0,0.00011232,2]
[351331592,1738516268254,-500.0,0.00011232,2]
[351331593,1738516268271,-500.0,0.00011232,2]
[351331594,1738516268281,-7948.23,0.00011232,2]
[351331595,1738516268290,-3699.44,0.00011232,2]
[351331596,1738516268300,-1134.77,0.00011232,2]
[351331597,1738516268310,-1388.83,0.00011232,2]
[351331598,1738516268319,-1267.53,0.00011232,2]
[351331599,1738516268328,-700.239809,0.00011232,2]
[351331600,1738516268337,-1281.92,0.00011232,2]
[351331601,1738516268346,-1852.27,0.00011232,2]
[351331602,1738516268355,-772.18,0.00011232,2]
[351331603,1738516268364,-500.0,0.00011232,2]
[351331604,1738516268374,-22309.31,0.00011232,2]
[351331605,1738516268384,-10331.27,0.00011232,2]
[351331606,1738516268394,-3740.63,0.00011232,2]
[351331607,1738516268404,-500.0,0.00011232,2]
[351331608,1738516268414,-2548.06,0.00011232,2]
[351331609,1738516268423,-2430.52,0.00011232,2]
[351331610,1738516268433,-757.34,0.00011232,2]
[351331611,1738516268442,-460.21654168,0.00011232,2]
[351331612,1738516268453,-500.0,0.00011232,2]
[351331613,1738516268462,-5491.14,0.00011232,2]
[351331614,1738516268472,-500.0,0.00011232,2]
[351331615,1738516268481,-3483.73,0.00011232,2]
[351331616,1738516268491,-500.0,0.00011232,2]
[351331617,1738516268502,-3375.4,0.00011232,2]
[351331618,1738516268512,-1965.31,0.00011232,2]
[351331619,1738516268522,-715.854792,0.00011232,2]
[351331620,1738516268532,-500.0,0.00011232,2]
[351331621,1738516268542,-573.22,0.00011232,2]
[351331622,1738516268551,-499.671825,0.00011232,2]
[351331623,1738516268560,-5575.16,0.00011232,2]
[351331624,1738516268571,-500.0,0.00011232,2]
[351331625,1738516268580,-3861.12,0.00011232,2]
[351331626,1738516268590,-500.0,0.00011232,2]
[351331627,1738516268600,-6565.29,0.00011232,2]
[351331628,1738516268610,-500.0,0.00011232,2]
[351331629,1738516268620,-502.42936051,0.00011232,2]
[351331630,1738516268629,-500.0,0.00011232,2]
[351331631,1738516268639,-2279.37,0.00011232,2]
[351331632,1738516268649,-1098.28,0.00011232,2]
[351331633,1738516268658,-500.0,0.00011232,2]
[351331634,1738516268668,-500.0,0.00011232,2]
[351331635,1738516268677,-5388.59,0.00011232,2]
[351331636,1738516268687,-639.96377821,0.00011232,2]
[351331637,1738516268696,-1360.61,0.00011232,2]
[351331638,1738516268706,-500.0,0.00011232,2]
[351331639,1738516268715,-500.0,0.00011232,2]
[351331640,1738516268727,-500.0,0.00011232,2]
[351331641,1738516268736,-658.158992,0.00011232,2]
[351331642,1738516268746,-174.31292824,0.00011232,2]
[351331643,1738516268756,-500.0,0.00011232,2]
[351331644,1738516268766,-2722.34,0.00011232,2]
[351331645,1738516268775,-864.3,0.00011232,2]
[351331646,1738516268785,-469.57071,0.00011232,2]
[351331647,1738516268794,-500.0,0.00011232,2]
[351331648,1738516268804,-3044.13,0.00011232,2]
[351331649,1738516268814,-500.0,0.00011232,2]
[351331650,1738516268950,-729.59,0.00011232,2]
[351331651,1738516268961,-500.0,0.00011232,2]
[351331652,1738516268973,-500.0,0.00011232,2]
[351331653,1738516268982,-3192.39,0.00011232,2]
[351331654,1738516268994,-1342.13,0.00011232,2]
[351331655,1738516269012,-3427.67,0.00011232,2]
[351331656,1738516269021,-2027.55,0.00011232,2]
[351331657,1738516269031,-500.0,0.00011232,2]
[351331658,1738516269042,-500.0,0.00011232,2]
[351331659,1738516269051,-537.60777401,0.00011232,2]
[351331660,1738516269061,-500.0,0.00011232,2]
[351331661,1738516269071,-4252.01,0.00011232,2]
[351331662,1738516269082,-2583.64,0.00011232,2]
[351331663,1738516269093,-10284.26,0.00011232,2]
[351331664,1738516269103,-2652.56,0.00011232,2]
[351331665,1738516269112,-555.992645,0.00011232,2]
[351331666,1738516269122,-500.0,0.00011232,2]
[351331667,1738516269133,-500.0,0.00011232,2]
[351331668,1738516269142,-12127.67,0.00011232,2]
[351331669,1738516269152,-633.56,0.00011232,2]
[351331670,1738516269161,-1427.7,0.00011232,2]
[351331671,1738516269171,-576.949377,0.00011232,2]
[351331672,1738516269180,-500.0,0.00011232,2]
[351331673,1738516269190,-500.0,0.00011232,2]
[351331674,1738516269199,-7300.52,0.00011232,2]
[351331675,1738516269207,-500.0,0.00011232,2]
[351331676,1738516269217,-4063.4,0.00011232,2]
[351331677,1738516269229,-6290.38,0.00011232,2]
[351331678,1738516269238,-824.29,0.00011232,2]